bitfinex-derivatives/quotes_BTCF0:USTF0_20250614
["timestamp","ask_amount","ask_price","bid_price","bid_amount"]
[1749865767425,1.81955714,105640.0,105630.0,0.01337936]
[1749865767629,1.81955714,105640.0,105630.0,0.02817663]
[1749865767823,1.81955714,105640.0,105630.0,0.02817659]
[1749865768037,1.81955714,105640.0,105630.0,0.02817644]
[1749865768336,2.00231714,105640.0,105630.0,0.03231481]
[1749865768639,2.00227714,105640.0,105630.0,0.01751773]
[1749865768838,1.04119714,105640.0,105630.0,0.00428021]
[1749865769134,2.00223714,105640.0,105630.0,0.03231023]
[1749865769436,2.00223714,105640.0,105630.0,0.01751312]
[1749865769632,2.00215714,105640.0,105630.0,0.03231024]
[1749865769835,1.04119714,105640.0,105630.0,0.03231024]
[1749865770035,1.81883714,105640.0,105630.0,0.01751312]
[1749865770330,1.81883714,105640.0,105630.0,0.03231676]
[1749865770731,1.81883714,105640.0,105630.0,0.01907733]
[1749865771036,1.81883714,105640.0,105630.0,0.03231676]
[1749865771228,1.81883714,105640.0,105630.0,0.01751967]
[1749865771428,1.81883714,105640.0,105630.0,0.01907733]
[1749865771628,1.81883714,105640.0,105630.0,0.03231678]
[1749865771836,1.81883714,105640.0,105630.0,0.01751966]
[1749865772133,1.81883714,105640.0,105630.0,0.03231678]
[1749865772335,1.70100847,105640.0,105630.0,0.03231678]
[1749865772535,1.70100847,105640.0,105630.0,0.03231677]
[1749865773629,1.70100847,105640.0,105630.0,0.03232635]
[1749865773937,1.70100847,105640.0,105630.0,0.01752921]
[1749865774131,1.70100847,105640.0,105630.0,0.03232637]
[1749865774330,1.84715638,105640.0,105630.0,0.03233743]
[1749865775336,1.84715638,105640.0,105630.0,0.02819892]
[1749865775635,1.84715638,105640.0,105630.0,0.02819893]
[1749865775836,1.84715638,105640.0,105630.0,0.01493902]
[1749865776036,1.84715638,105640.0,105630.0,0.0281976]
[1749865776229,1.84715638,105640.0,105630.0,0.01753879]
[1749865776429,1.84715638,105640.0,105630.0,0.01753894]
[1749865776629,1.84715638,105640.0,105630.0,0.03233609]
[1749865776832,1.84715638,105640.0,105630.0,0.03233626]
[1749865777132,1.84715638,105640.0,105630.0,0.03233625]
[1749865777330,1.84715638,105640.0,105630.0,0.0281979]
[1749865777529,1.84715638,105640.0,105630.0,0.01340074]
[1749865777730,1.84715638,105640.0,105630.0,0.02819789]
[1749865777930,1.84715638,105640.0,105630.0,0.01493902]
[1749865778133,1.84715638,105640.0,105630.0,0.00014186]
[1749865778435,1.84715638,105640.0,105630.0,0.02819535]
[1749865778637,1.84715638,105640.0,105630.0,0.02819533]
[1749865778840,1.84715638,105640.0,105630.0,0.01493902]
[1749865779343,1.84715638,105640.0,105630.0,0.02819535]
[1749865779932,1.84715638,105640.0,105630.0,0.02820151]
[1749865780236,1.84715638,105640.0,105630.0,0.0282015]
[1749865780439,1.84715638,105640.0,105630.0,0.01907742]
[1749865780641,1.84715638,105640.0,105630.0,0.03233986]
[1749865781239,1.84715638,105640.0,105630.0,0.01754264]
[1749865781433,1.84715638,105640.0,105630.0,0.01907742]
[1749865781634,1.84715638,105640.0,105630.0,0.03233985]
[1749865782135,1.84715638,105640.0,105630.0,0.01754265]
[1749865782332,1.84715638,105640.0,105630.0,0.03233985]
[1749865782533,1.84715638,105640.0,105630.0,0.01907742]
[1749865783038,1.84715638,105640.0,105630.0,0.03234447]
[1749865783540,1.84715638,105640.0,105630.0,0.03234448]
[1749865783740,1.84715638,105640.0,105630.0,0.03234449]
[1749865784442,1.84715638,105640.0,105630.0,0.00428021]
[1749865784637,1.84715638,105640.0,105630.0,0.03234957]
[1749865784832,1.84715638,105640.0,105630.0,0.01755236]
[1749865785034,1.84715638,105640.0,105630.0,0.01907742]
[1749865785236,1.84715638,105640.0,105630.0,0.01755236]
[1749865785438,1.84715638,105640.0,105630.0,0.03234959]
[1749865785632,1.84715638,105640.0,105630.0,0.01755237]
[1749865785833,1.84715638,105640.0,105630.0,0.03234958]
[1749865786240,1.84715638,105640.0,105630.0,0.03234937]
[1749865786440,1.84715638,105640.0,105630.0,0.01907721]
[1749865786638,1.84715638,105640.0,105630.0,0.03232174]
[1749865786840,1.84715638,105640.0,105630.0,0.01751664]
[1749865787044,1.84715638,105640.0,105630.0,0.03231356]
[1749865787233,1.06951638,105640.0,105630.0,0.03231356]
[1749865787542,2.00049638,105640.0,105630.0,0.03229097]
[1749865787844,2.00049638,105640.0,105630.0,0.03748021]
[1749865788042,2.00049638,105640.0,105630.0,0.06546009]
[1749865788340,2.00049638,105640.0,105630.0,0.03748021]
[1749865788536,1.85434847,105640.0,105630.0,0.06544653]
[1749865788730,1.85434847,105640.0,105630.0,0.05227666]
[1749865788935,1.85434847,105640.0,105630.0,0.03748021]
[1749865789131,1.85434847,105640.0,105630.0,0.05227668]
[1749865789343,1.67118847,105640.0,105630.0,0.065449]
[1749865789544,1.67118847,105640.0,105630.0,0.05065434]
[1749865790041,1.67118847,105640.0,105630.0,0.05227669]
[1749865790242,1.67118847,105640.0,105630.0,0.06544971]
[1749865790436,1.67118847,105640.0,105630.0,0.06544011]
[1749865790640,1.67118847,105640.0,105630.0,0.05227669]
[1749865790840,1.67118847,105640.0,105630.0,0.06544009]
[1749865791146,1.67118847,105640.0,105630.0,0.06544011]
[1749865792445,1.67118847,105640.0,105630.0,0.05064363]
[1749865792741,1.67118847,105640.0,105630.0,0.05227669]
[1749865792942,1.67118847,105640.0,105630.0,0.0654401]
[1749865793143,1.67118847,105640.0,105630.0,0.05064365]
[1749865793343,1.67118847,105640.0,105630.0,0.05227669]
[1749865793543,1.67118847,105640.0,105630.0,0.06544015]
[1749865793743,1.67118847,105640.0,105630.0,0.06544011]
[1749865793938,1.67118847,105640.0,105630.0,0.06543692]
[1749865794343,1.67118847,105640.0,105630.0,0.06543679]
[1749865794845,1.67118847,105640.0,105630.0,0.0654368]
[1749865795046,1.67118847,105640.0,105630.0,0.05064048]
[1749865795245,1.78853837,105640.0,105630.0,0.03748021]
[1749865795548,1.78853837,105640.0,105630.0,0.05227635]
[1749865795842,1.78853837,105640.0,105630.0,0.10068021]
[1749865796142,1.78853837,105640.0,105630.0,0.11547633]
[1749865797047,1.78853837,105640.0,105630.0,0.05227633]
[1749865797237,1.78853837,105640.0,105630.0,0.03748021]
[1749865797443,1.67054847,105640.0,105630.0,0.06570179]
[1749865797641,1.67054847,105640.0,105630.0,0.06156341]
[1749865797844,1.67054847,105640.0,105630.0,0.03334186]
[1749865798041,1.67054847,105640.0,105630.0,0.04676728]
[1749865798242,1.67054847,105640.0,105630.0,0.06156341]
[1749865798441,1.81669638,105640.0,105630.0,0.06156341]
[1749865798648,1.81669638,105640.0,105630.0,0.02836403]
[1749865798845,1.84669638,105640.0,105630.0,0.02844198]
[1749865799148,1.84669638,105640.0,105630.0,0.02844614]
[1749865799549,1.84669638,105640.0,105630.0,0.01364935]
[1749865799749,1.84669638,105640.0,105630.0,0.02844618]
[1749865799949,1.84669638,105640.0,105630.0,0.01364921]
[1749865800248,1.84669638,105640.0,105630.0,0.01493865]
[1749865800449,1.84669638,105640.0,105630.0,0.0136467]
[1749865800651,1.84669638,105640.0,105630.0,0.02844349]
[1749865801040,1.84669638,105640.0,105630.0,0.02844351]
[1749865801245,1.03841638,105640.0,105630.0,0.02844342]
[1749865801441,1.81609638,105640.0,105630.0,0.06082763]
[1749865801646,1.81609638,105640.0,105630.0,0.09082069]
[1749865801849,1.81609638,105640.0,105630.0,0.09082644]
[1749865802048,1.81609638,105640.0,105630.0,0.09082648]
[1749865802250,1.81609638,105640.0,105630.0,0.07603452]
[1749865802441,1.81609638,105640.0,105630.0,0.12133203]
[1749865802647,1.81609638,105640.0,105630.0,0.09708021]
[1749865802951,1.81609638,105640.0,105630.0,0.12546925]
[1749865803150,1.81609638,105640.0,105630.0,0.11067176]
[1749865803355,1.81609638,105640.0,105630.0,0.12546925]
[1749865803748,1.81609638,105640.0,105630.0,0.12529818]
[1749865804051,1.81609638,105640.0,105630.0,0.12529819]
[1749865804251,1.78449638,105640.0,105630.0,0.1252982]
[1749865804855,1.78449638,105640.0,105630.0,0.31451898]
[1749865804856,0.73320644,105640.0,105630.0,0.31451898]
[1749865805054,0.39705853,105640.0,105630.0,0.70453292]
[1749865805348,0.48577873,105640.0,105630.0,0.68973781]
[1749865805544,0.36748867,105640.0,105630.0,0.7177437]
[1749865805747,0.36748867,105640.0,105630.0,0.71772557]
[1749865805952,0.36748867,105640.0,105630.0,0.71772672]
[1749865806244,0.36548867,105640.0,105630.0,0.71772662]
[1749865806448,0.36548867,105640.0,105630.0,0.71772664]
[1749865806645,0.39505853,105640.0,105630.0,0.6751203]
[1749865807052,0.39305853,105640.0,105630.0,0.47107521]
[1749865807245,0.39305853,105640.0,105630.0,0.67511849]
[1749865807442,0.39305853,105640.0,105630.0,0.64712921]
[1749865807648,0.39305853,105640.0,105630.0,0.67511854]
[1749865807848,0.39305853,105640.0,105630.0,0.47107526]
[1749865808050,0.39305853,105640.0,105630.0,0.48586954]
[1749865808251,0.39305853,105640.0,105630.0,0.48586955]
[1749865808457,0.39305853,105640.0,105630.0,0.4710753]
[1749865808652,0.39305853,105640.0,105630.0,0.47267449]
[1749865808853,0.39305853,105640.0,105630.0,0.47108175]
[1749865809054,0.39305853,105640.0,105630.0,0.64712921]
[1749865809255,0.39305853,105640.0,105630.0,0.67512346]
[1749865809459,0.39305853,105640.0,105630.0,0.66192347]
[1749865809751,0.39305853,105640.0,105630.0,0.67513201]
[1749865809946,0.39305853,105640.0,105630.0,0.67513216]
[1749865810149,0.39305853,105640.0,105630.0,0.67513229]
[1749865810347,0.39305853,105640.0,105630.0,0.6751323]
[1749865810755,0.39305853,105640.0,105630.0,0.64712921]
[1749865810950,0.39305853,105640.0,105630.0,0.66029112]
[1749865811146,0.39305853,105640.0,105630.0,0.66029107]
[1749865811657,0.39305853,105640.0,105630.0,0.66029111]
[1749865811859,0.39305853,105640.0,105630.0,0.66029172]
[1749865812757,0.39305853,105640.0,105630.0,0.84341172]
[1749865812958,0.39305853,105640.0,105630.0,0.84337254]
[1749865813160,0.39305853,105640.0,105630.0,0.84337614]
[1749865813555,0.39305853,105640.0,105630.0,0.83024921]
[1749865813753,0.39305853,105640.0,105630.0,0.83923775]
[1749865813958,0.39305853,105640.0,105630.0,0.82611086]
[1749865814263,0.39305853,105640.0,105630.0,0.83923778]
[1749865814470,0.39305853,105640.0,105630.0,0.82611086]
[1749865814660,0.39305853,105640.0,105630.0,0.83923766]
[1749865814860,0.39305853,105640.0,105630.0,0.83923771]
[1749865815260,0.39305853,105640.0,105630.0,0.8392378]
[1749865815965,0.39305853,105640.0,105630.0,0.83923785]
[1749865816167,0.42425853,105640.0,105630.0,0.8392379]
[1749865816366,0.42425853,105640.0,105630.0,0.82611086]
[1749865816663,0.42425853,105640.0,105630.0,0.86865026]
[1749865816664,0.39455746,105640.0,105630.0,0.86865026]
[1749865816866,0.39455746,105640.0,105630.0,0.88591564]
[1749865817066,0.39455746,105640.0,105630.0,0.87278861]
[1749865817262,0.39455746,105640.0,105630.0,0.88591562]
[1749865817467,0.39455746,105640.0,105630.0,0.8859156]
[1749865817967,0.39455746,105640.0,105630.0,0.88591565]
[1749865818172,0.39455746,105640.0,105630.0,0.87278861]
[1749865818468,0.39455746,105640.0,105630.0,0.88591569]
[1749865819063,0.39455746,105640.0,105630.0,0.88590651]
[1749865819264,0.39455746,105640.0,105630.0,0.88590654]
[1749865819670,0.39455746,105640.0,105630.0,0.88590637]
[1749865820061,0.39455746,105640.0,105630.0,0.88590495]
[1749865820266,0.39455746,105640.0,105630.0,0.88590478]
[1749865820466,0.39455746,105640.0,105630.0,0.87278861]
[1749865820869,0.39455746,105640.0,105630.0,0.86865026]
[1749865821070,0.39455746,105640.0,105630.0,0.88176644]
[1749865821264,0.39455746,105640.0,105630.0,0.88176643]
[1749865821469,0.39455746,105640.0,105630.0,0.88176629]
[1749865821766,0.39455746,105640.0,105630.0,0.88176624]
[1749865821966,0.39455746,105640.0,105630.0,0.88590457]
[1749865822167,0.39455746,105640.0,105630.0,0.52510457]
[1749865822367,0.39455746,105640.0,105630.0,0.88590457]
[1749865822565,0.39455746,105640.0,105630.0,0.88592727]
[1749865823168,0.39455746,105640.0,105630.0,0.88592267]
[1749865823864,0.39455746,105640.0,105630.0,0.86865026]
[1749865824070,0.39455746,105640.0,105630.0,0.88182329]
[1749865824267,0.39455746,105640.0,105630.0,0.86865026]
[1749865824472,0.39455746,105640.0,105630.0,0.88182321]
[1749865825174,0.39455746,105640.0,105630.0,0.8818233]
[1749865825567,0.39455746,105640.0,105630.0,0.88182336]
[1749865825769,0.39455746,105640.0,105630.0,0.88182324]
[1749865825971,0.39455746,105640.0,105630.0,0.86865026]
[1749865826274,0.39455746,105640.0,105630.0,0.88182201]
[1749865826573,0.39455746,105640.0,105630.0,0.88182217]
[1749865826773,0.39455746,105640.0,105630.0,0.88182196]
[1749865826975,0.39455746,105640.0,105630.0,0.86865026]
[1749865827174,0.42755746,105640.0,105630.0,0.88182197]
[1749865827669,0.42755746,105640.0,105630.0,0.86865026]
[1749865827877,0.42755746,105640.0,105630.0,0.88182315]
[1749865828072,0.42755746,105640.0,105630.0,0.88182309]
[1749865828271,0.42755746,105640.0,105630.0,0.69870309]
[1749865828474,0.42755746,105640.0,105630.0,1.65718309]
[1749865828677,0.42755746,105640.0,105630.0,1.64401026]
[1749865829273,0.42755746,105640.0,105630.0,1.65718311]
[1749865830773,0.42755746,105640.0,105630.0,1.65718294]
[1749865831275,0.42755746,105640.0,105630.0,1.65718293]
[1749865831670,0.42755746,105640.0,105630.0,1.47486296]
[1749865831875,0.42755746,105640.0,105630.0,1.65662295]
[1749865832076,0.42755746,105640.0,105630.0,1.65662294]
[1749865832579,0.54584752,105640.0,105630.0,1.64345026]
[1749865832776,0.54584752,105640.0,105630.0,1.65662293]
[1749865832975,0.42755746,105640.0,105630.0,1.64345026]
[1749865833179,0.42755746,105640.0,105630.0,1.65661628]
[1749865833375,0.42755746,105640.0,105630.0,1.65662171]
[1749865833575,0.42755746,105640.0,105630.0,1.65662069]
[1749865833779,0.42755746,105640.0,105630.0,1.65662067]
[1749865834579,0.45725853,105640.0,105630.0,1.67141509]
[1749865834779,0.45725853,105640.0,105630.0,1.67141524]
[1749865834977,0.45725853,105640.0,105630.0,1.62774468]
[1749865835170,0.45725853,105640.0,105630.0,1.64091564]
[1749865835576,0.45725853,105640.0,105630.0,1.6409157]
[1749865835781,0.45725853,105640.0,105630.0,1.62612128]
[1749865835979,0.45725853,105640.0,105630.0,1.64091568]
[1749865836181,0.45725853,105640.0,105630.0,1.64091571]
[1749865836378,0.45725853,105640.0,105630.0,1.6261213]
[1749865836778,0.45725853,105640.0,105630.0,1.64091571]
[1749865836973,0.45725853,105640.0,105630.0,1.6409157]
[1749865837182,0.45725853,105640.0,105630.0,1.62612129]
[1749865837575,0.45725853,105640.0,105630.0,1.62774468]
[1749865837881,0.45725853,105640.0,105630.0,1.64091572]
[1749865838276,0.14983717,105640.0,105630.0,1.6852939]
[1749865838472,0.14983717,105640.0,105630.0,1.97052234]
[1749865838473,0.36354494,105640.0,105630.0,1.97052234]
[1749865838676,0.27790777,105640.0,105630.0,2.00112234]
[1749865838985,0.27790777,105640.0,105630.0,2.00112218]
[1749865839175,0.27790777,105640.0,105630.0,2.00526054]
[1749865839583,0.27790777,105640.0,105630.0,2.01866093]
[1749865839883,0.27790777,105640.0,105630.0,2.00586715]
[1749865840086,0.27790777,105640.0,105630.0,2.02066093]
[1749865840283,0.27790777,105640.0,105630.0,2.0175226]
[1749865840482,0.27790777,105640.0,105630.0,2.01752258]
[1749865840683,0.28757742,105640.0,105630.0,2.01752258]
[1749865840887,0.28757742,105640.0,105630.0,2.00412223]
[1749865841182,0.28757742,105640.0,105630.0,2.01752318]
[1749865841385,0.28757742,105640.0,105630.0,2.00412223]
[1749865841581,0.28757742,105640.0,105630.0,2.00272942]
[1749865841781,0.28757742,105640.0,105630.0,2.01752317]
[1749865842083,0.28757742,105640.0,105630.0,2.01752315]
[1749865842283,0.28757742,105640.0,105630.0,2.01752301]
[1749865842485,0.28757742,105640.0,105630.0,2.00412206]
[1749865842786,0.28757742,105640.0,105630.0,2.00271277]
[1749865842983,0.28757742,105640.0,105630.0,2.00412225]
[1749865843381,0.36366253,105640.0,105630.0,2.00271779]
[1749865843687,0.36366253,105640.0,105630.0,1.98932845]
[1749865843876,0.36366253,105640.0,105630.0,2.01751222]
[1749865844083,0.36366253,105640.0,105630.0,2.01751223]
[1749865844278,0.36366253,105640.0,105630.0,1.05266324]
[1749865844478,0.36366253,105640.0,105630.0,1.89738045]
[1749865844677,0.42626253,105640.0,105630.0,1.72292551]
[1749865844889,0.42626253,105640.0,105630.0,1.91217471]
[1749865845184,0.42626253,105640.0,105630.0,1.91207468]
[1749865845788,0.42626253,105640.0,105630.0,1.912078]
[1749865845988,0.42626253,105640.0,105630.0,1.91207806]
[1749865846191,0.42626253,105640.0,105630.0,0.95467805]
[1749865846385,0.90535259,105640.0,105630.0,1.50418373]
[1749865846590,0.84957602,105640.0,105630.0,1.47648935]
[1749865846789,0.99572393,105640.0,105630.0,1.47648935]
[1749865847084,1.24743387,105640.0,105630.0,0.03144059]
[1749865847285,1.41288035,105640.0,105630.0,0.00314186]
[1749865847481,1.26673244,105640.0,105630.0,0.01793827]
[1749865847682,1.26673244,105640.0,105630.0,0.01585241]
[1749865847882,1.26673244,105640.0,105630.0,0.0306489]
[1749865848187,1.61680552,105640.0,105630.0,0.03065812]
[1749865848392,1.61674934,105640.0,105630.0,0.03073888]
[1749865848597,1.61674934,105640.0,105630.0,0.02874243]
[1749865848789,1.41130286,105640.0,105630.0,0.02848116]
[1749865848991,1.41130286,105640.0,105630.0,0.02848131]
[1749865849192,1.41530286,105640.0,105630.0,0.02848129]
[1749865849592,0.189285,105610.0,105600.0,1.5721842]
[1749865849791,0.27787453,105610.0,105600.0,2.8209297]
[1749865849991,0.30837453,105610.0,105600.0,2.81969018]
[1749865850196,0.30837453,105610.0,105600.0,2.81969024]
[1749865850387,0.30837453,105610.0,105600.0,2.82092968]
[1749865850590,0.30837453,105610.0,105600.0,2.8344885]
[1749865850784,0.30837453,105610.0,105600.0,2.83548845]
[1749865850994,0.30837453,105610.0,105600.0,2.83547591]
[1749865851291,0.30837453,105610.0,105600.0,2.8354717]
[1749865851791,0.30837453,105610.0,105600.0,2.80913226]
[1749865851991,0.30837453,105610.0,105600.0,2.83747171]
[1749865852495,0.219785,105610.0,105600.0,2.84774093]
[1749865852896,0.219785,105610.0,105600.0,2.83294364]
[1749865853097,0.219785,105610.0,105600.0,2.83748085]
[1749865853396,0.219785,105610.0,105600.0,2.83262796]
[1749865853694,0.219785,105610.0,105600.0,2.80881226]
[1749865853898,0.219785,105610.0,105600.0,2.83725964]
[1749865854090,0.219785,105610.0,105600.0,2.83387874]
[1749865854286,0.219785,105610.0,105600.0,2.83273233]
[1749865854489,0.219785,105610.0,105600.0,2.84752961]
[1749865854684,0.189285,105610.0,105600.0,2.84752961]
[1749865854886,0.189285,105610.0,105600.0,3.11748148]
[1749865855091,0.189285,105610.0,105600.0,3.12200953]
[1749865855285,0.189285,105610.0,105600.0,3.13113121]
[1749865855491,0.189285,105610.0,105600.0,3.14593033]
[1749865855790,0.189285,105610.0,105600.0,3.14593019]
[1749865855990,0.189285,105610.0,105600.0,3.14593014]
[1749865856298,0.189285,105610.0,105600.0,3.1311329]
[1749865856498,0.189285,105610.0,105600.0,3.14593018]
[1749865856690,0.189285,105610.0,105600.0,3.20498504]
[1749865856890,0.189285,105610.0,105600.0,3.20500212]
[1749865857094,0.189285,105610.0,105600.0,3.19472189]
[1749865857293,0.189285,105610.0,105600.0,3.1947231]
[1749865857494,0.189285,105610.0,105600.0,3.19020605]
[1749865857790,0.189285,105610.0,105600.0,3.17985668]
[1749865857986,0.23673796,105620.0,105610.0,0.1892849]
[1749865858189,0.23673796,105620.0,105610.0,0.72692187]
[1749865858398,0.23673796,105620.0,105610.0,0.70875662]
[1749865858600,0.23673796,105620.0,105610.0,1.67708527]
[1749865858892,0.23673796,105620.0,105610.0,1.71554727]
[1749865859200,0.23673796,105620.0,105610.0,1.71554525]
[1749865859398,0.18942076,105620.0,105610.0,1.71554523]
[1749865859698,0.18942076,105620.0,105610.0,1.71554525]
[1749865859993,0.18942076,105620.0,105610.0,1.70074933]
[1749865860195,0.18942076,105620.0,105610.0,1.69188119]
[1749865860394,0.18942076,105620.0,105610.0,1.71554221]
[1749865860595,0.18942076,105620.0,105610.0,1.67708527]
[1749865860795,0.18942076,105620.0,105610.0,1.70074872]
[1749865860995,0.18942076,105620.0,105610.0,1.99028118]
[1749865861192,0.18942076,105620.0,105610.0,2.01394464]
[1749865861387,0.18942076,105620.0,105610.0,2.0037133]
[1749865861592,0.18942076,105620.0,105610.0,1.99914875]
[1749865861795,0.18942076,105620.0,105610.0,2.01394467]
[1749865861995,0.18942076,105620.0,105610.0,2.00027334]
[1749865862197,0.22212076,105620.0,105610.0,1.98547682]
[1749865862493,0.22212076,105620.0,105610.0,1.99901056]
[1749865862695,0.22212076,105620.0,105610.0,2.01380729]
[1749865862900,0.22212076,105620.0,105610.0,2.00357567]
[1749865863101,0.25482076,105620.0,105610.0,1.97524527]
[1749865863400,0.25482076,105620.0,105610.0,2.00354927]
[1749865863601,0.25482076,105620.0,105610.0,1.97524527]
[1749865863801,0.25482076,105620.0,105610.0,1.64274928]
[1749865864001,0.25482076,105620.0,105610.0,1.58496998]
[1749865864204,0.25482076,105620.0,105610.0,1.58371339]
[1749865864407,0.25482076,105620.0,105610.0,1.59851049]
[1749865864700,0.25482076,105620.0,105610.0,1.59852096]
[1749865864901,0.25482076,105620.0,105610.0,1.57017296]
[1749865865103,0.25482076,105620.0,105610.0,1.58497006]
[1749865865404,0.25482076,105620.0,105610.0,1.59852096]
[1749865865604,0.25482076,105620.0,105610.0,1.57017296]
[1749865865806,0.25482076,105620.0,105610.0,1.58497006]
[1749865865995,0.25482076,105620.0,105610.0,1.58372384]
[1749865866210,0.25482076,105620.0,105610.0,0.80881006]
[1749865866503,0.25482076,105620.0,105610.0,1.59840095]
[1749865866703,0.25482076,105620.0,105610.0,1.51680095]
[1749865866900,0.25482076,105620.0,105610.0,1.5020114]
[1749865867104,0.25482076,105620.0,105610.0,1.52703754]
[1749865868102,0.25482076,105620.0,105610.0,1.51682239]
[1749865868307,0.25482076,105620.0,105610.0,1.52705185]
[1749865868507,0.25482076,105620.0,105610.0,1.52705131]
[1749865869009,0.25482076,105620.0,105610.0,1.52705666]
[1749865869208,0.25482076,105620.0,105610.0,1.5270656]
[1749865869405,0.25482076,105620.0,105610.0,1.50203021]
[1749865869710,0.25482076,105620.0,105610.0,1.51682741]
[1749865869905,0.25482076,105620.0,105610.0,1.51228085]
[1749865870209,0.25482076,105620.0,105610.0,1.52707806]
[1749865870407,0.25482076,105620.0,105610.0,1.52707799]
[1749865870602,0.25482076,105620.0,105610.0,1.51228034]
[1749865870810,0.25482076,105620.0,105610.0,1.52707591]
[1749865871109,0.25482076,105620.0,105610.0,1.51683867]
[1749865871311,0.25482076,105620.0,105610.0,1.51348725]
[1749865871506,0.25482076,105620.0,105610.0,1.52707171]
[1749865871710,0.25482076,105620.0,105610.0,1.52706881]
[1749865871905,0.25482076,105620.0,105610.0,1.50203708]
[1749865872098,0.25482076,105620.0,105610.0,1.48845296]
[1749865872305,0.25482076,105620.0,105610.0,1.50325016]
[1749865872504,0.34341029,105620.0,105610.0,1.48845296]
[1749865872707,0.34341029,105620.0,105610.0,1.20368191]
[1749865873011,0.34341029,105620.0,105610.0,1.21847899]
[1749865873210,0.25482076,105620.0,105610.0,1.21847899]
[1749865873408,0.25482076,105620.0,105610.0,1.21847036]
[1749865873609,0.34341029,105620.0,105610.0,1.2184714]
[1749865873819,0.34341029,105620.0,105610.0,1.20485016]
[1749865874020,0.34341029,105620.0,105610.0,1.21847501]
[1749865874317,0.34341029,105620.0,105610.0,1.20368079]
[1749865874516,0.34341029,105620.0,105610.0,1.20368083]
[1749865874716,0.34341029,105620.0,105610.0,1.21847815]
[1749865874913,0.34341029,105620.0,105610.0,1.19005296]
[1749865875311,0.34341029,105620.0,105610.0,1.20368112]
[1749865875513,0.34341029,105620.0,105610.0,1.24795328]
[1749865875713,0.34341029,105620.0,105610.0,1.24795326]
[1749865875909,0.34341029,105620.0,105610.0,1.24795341]
[1749865876120,0.34341029,105620.0,105610.0,1.26275062]
[1749865876320,0.34341029,105620.0,105610.0,1.26275058]
[1749865876522,0.34341029,105620.0,105610.0,1.24795343]
[1749865876814,0.34341029,105620.0,105610.0,1.24795687]
[1749865877115,0.34341029,105620.0,105610.0,1.23432527]
[1749865877319,0.34341029,105620.0,105610.0,1.2479576]
[1749865877522,0.34341029,105620.0,105610.0,1.26275483]
[1749865877820,0.34341029,105620.0,105610.0,1.26275462]
[1749865878422,0.34341029,105620.0,105610.0,1.26275437]
[1749865878718,0.34341029,105620.0,105610.0,1.56115437]
[1749865878916,0.34341029,105620.0,105610.0,1.92195435]
[1749865879116,0.34341029,105620.0,105610.0,1.9083225]
[1749865879317,0.34341029,105620.0,105610.0,1.95513031]
[1749865879724,0.34341029,105620.0,105610.0,1.94033388]
[1749865880016,0.34341029,105620.0,105610.0,1.9551291]
[1749865880220,0.34341029,105620.0,105610.0,1.95512898]
[1749865880422,0.34341029,105620.0,105610.0,1.9415223]
[1749865880717,0.34341029,105620.0,105610.0,1.94033143]
[1749865880918,0.34341029,105620.0,105610.0,1.94033141]
[1749865881319,0.34341029,105620.0,105610.0,1.92672527]
[1749865881516,0.34341029,105620.0,105610.0,1.95512831]
[1749865881717,0.34341029,105620.0,105610.0,1.9993751]
[1749865882023,0.34341029,105620.0,105610.0,2.01410868]
[1749865882316,0.34341029,105620.0,105610.0,2.00056558]
[1749865882517,0.34341029,105620.0,105610.0,1.99931158]
[1749865882920,0.34341029,105620.0,105610.0,2.01410872]
[1749865883420,0.34341029,105620.0,105610.0,2.01410867]
[1749865884222,0.34341029,105620.0,105610.0,2.01410868]
[1749865884922,0.34341029,105620.0,105610.0,2.01410869]
[1749865885317,0.34341029,105620.0,105610.0,1.99931159]
[1749865885623,0.34341029,105620.0,105610.0,2.00056558]
[1749865886119,0.34341029,105620.0,105610.0,2.01410546]
[1749865886323,0.34341029,105620.0,105610.0,1.65330546]
[1749865886620,0.34341029,105620.0,105610.0,1.59431261]
[1749865886826,0.34341029,105620.0,105610.0,1.59431275]
[1749865887017,0.34341029,105620.0,105610.0,1.59432941]
[1749865887321,0.34341029,105620.0,105610.0,1.57953178]
[1749865887623,0.34341029,105620.0,105610.0,1.59432904]
[1749865887820,0.34341029,105620.0,105610.0,1.58072232]
[1749865888020,0.70421029,105620.0,105610.0,1.56592527]
[1749865888318,0.70421029,105620.0,105610.0,0.62136876]
[1749865888525,0.70421029,105620.0,105610.0,1.56460527]
[1749865888716,0.70421029,105620.0,105610.0,1.58967412]
[1749865888916,0.70421029,105620.0,105610.0,1.60332036]
[1749865889216,0.70421029,105620.0,105610.0,1.60332038]
[1749865890217,0.70421029,105620.0,105610.0,0.45715548]
[1749865890417,1.10374014,105620.0,105610.0,0.08128317]
[1749865890625,1.13574014,105620.0,105610.0,0.08144549]
[1749865890818,1.31734014,105620.0,105610.0,0.05284191]
[1749865891013,1.31734014,105620.0,105610.0,0.08146526]
[1749865891223,1.31734014,105620.0,105610.0,0.07119141]
[1749865891418,1.32734014,105620.0,105610.0,0.05736689]
[1749865891617,0.94734014,105620.0,105610.0,0.05736683]
[1749865891812,0.94734014,105620.0,105610.0,0.05639158]
[1749865892018,0.94734014,105620.0,105610.0,0.07119039]
[1749865892221,1.28734014,105620.0,105610.0,0.02862234]
[1749865892424,1.31686999,105620.0,105610.0,0.01382352]
[1749865892724,0.1892849,105610.0,105600.0,0.1816]
[1749865892920,0.1893028,105600.0,105590.0,2.21323417]
[1749865893118,0.34132219,105600.0,105590.0,2.45553611]
[1749865893319,0.2526028,105600.0,105590.0,2.47399093]
[1749865893518,0.2526028,105600.0,105590.0,1.50939004]
[1749865893725,0.34132219,105600.0,105590.0,2.29470873]
[1749865894021,0.34232219,105600.0,105590.0,2.48675452]
[1749865894219,0.34232219,105600.0,105590.0,2.4833363]
[1749865894418,0.34232219,105600.0,105590.0,2.47306038]
[1749865894619,0.34232219,105600.0,105590.0,2.49703063]
[1749865894917,0.34232219,105600.0,105590.0,2.48680723]
[1749865895122,0.2536028,105600.0,105590.0,2.48228333]
[1749865895325,0.2536028,105600.0,105590.0,2.25321399]
[1749865895627,0.2546028,105600.0,105590.0,2.27349727]
[1749865895827,0.2546028,105600.0,105590.0,2.26321423]
[1749865896123,0.2546028,105600.0,105590.0,2.23466735]
[1749865896527,0.34332219,105600.0,105590.0,2.27349732]
[1749865896715,0.34332219,105600.0,105590.0,2.27349731]
[1749865897127,0.34332219,105600.0,105590.0,2.2734973]
[1749865897326,0.34332219,105600.0,105590.0,2.26321412]
[1749865897623,0.34332219,105600.0,105590.0,2.26321413]
[1749865897826,0.34332219,105600.0,105590.0,2.27354516]
[1749865898126,0.34332219,105600.0,105590.0,2.24840179]
[1749865898326,0.34332219,105600.0,105590.0,2.25974018]
[1749865898520,0.34332219,105600.0,105590.0,2.27347452]
[1749865898830,0.34332219,105600.0,105590.0,2.27348078]
[1749865899020,0.34332219,105600.0,105590.0,2.26319522]
[1749865899326,0.31132219,105600.0,105590.0,2.45251616]
[1749865899525,0.31132219,105600.0,105590.0,2.51315213]
[1749865899720,0.31132219,105600.0,105590.0,2.52687883]
[1749865899927,0.31132219,105600.0,105590.0,2.52687882]
[1749865900622,0.31132219,105600.0,105590.0,1.38067792]